bitfinex-derivatives/quotes_BTCF0:USTF0_20241005
["timestamp","ask_amount","ask_price","bid_price","bid_amount"]
[1728105313855,0.56468842,62133.0,62127.0,0.056333]
[1728105313856,0.14656142,62132.0,62127.0,0.056333]
[1728105314047,0.17703776,62128.0,62127.0,0.056333]
[1728105314245,0.08882762,62128.0,62127.0,0.056333]
[1728105314444,0.26586538,62128.0,62127.0,0.07892155]
[1728105314847,0.17703776,62128.0,62127.0,0.07892155]
[1728105315052,0.05633,62130.0,62127.0,0.07892155]
[1728105315558,0.05633,62130.0,62127.0,0.07992155]
[1728105316354,0.3608,62133.0,62127.0,0.07992155]
[1728105316555,0.056331,62129.0,62127.0,0.07992155]
[1728105316950,0.056331,62129.0,62127.0,0.07892155]
[1728105317152,0.056331,62129.0,62127.0,0.07992155]
[1728105320456,0.056332,62128.0,62127.0,0.02358855]
[1728105321953,0.0957522,62128.0,62127.0,0.02358855]
[1728105322159,0.14516275,62128.0,62127.0,0.02358855]
[1728105323451,0.23342748,62128.0,62127.0,0.02358855]
[1728105323762,0.14516275,62128.0,62127.0,0.02358855]
[1728105324949,0.14516275,62128.0,62127.0,0.001]
[1728105325953,0.16820888,62128.0,62127.0,0.001]
[1728105327062,0.52900888,62128.0,62127.0,0.001]
[1728105328960,0.58674666,62128.0,62127.0,0.001]
[1728105329760,0.16820888,62128.0,62127.0,0.001]
[1728105330061,0.47959833,62128.0,62127.0,0.001]
[1728105330465,0.11879833,62128.0,62127.0,0.001]
[1728105330669,0.47959833,62128.0,62127.0,0.001]
[1728105331457,0.47960039,62128.0,62127.0,0.001]
[1728105336268,0.45655426,62128.0,62127.0,0.001]
[1728105336967,0.56370631,62128.0,62127.0,0.001]
[1728105337470,0.56370631,62128.0,62120.0,0.00611427]
[1728105337471,0.056334,62126.0,62120.0,0.00611427]
[1728105337668,0.17705134,62121.0,62120.0,0.00241427]
[1728105337858,0.08883542,62121.0,62120.0,0.00241427]
[1728105338358,0.08883542,62125.0,62120.0,0.00241427]
[1728105338560,0.056338,62121.0,62120.0,0.02581551]
[1728105338761,0.14617342,62121.0,62120.0,0.00641427]
[1728105340365,0.23335422,62121.0,62120.0,0.00541427]
[1728105340560,0.32218964,62121.0,62120.0,0.00541427]
[1728105340965,0.32318964,62121.0,62120.0,0.00441427]
[1728105341161,0.32418964,62121.0,62120.0,0.00441427]
[1728105343272,0.32418964,62121.0,62120.0,0.06075327]
[1728105343273,0.33992,62121.0,62120.0,0.06075327]
[1728105343469,0.09083542,62121.0,62120.0,0.15195327]
[1728105344578,0.2517392,62121.0,62120.0,0.15195327]
[1728105344980,0.002,62121.0,62120.0,0.15195327]
[1728105350762,0.002,62121.0,62120.0,0.09095327]
[1728105360392,0.04142229,62121.0,62120.0,0.09095327]
[1728105360575,0.09083545,62121.0,62120.0,0.09095327]
[1728105366877,0.002,62121.0,62120.0,0.09095327]
[1728105371088,0.002,62121.0,62120.0,0.06075327]
[1728105374187,0.002,62121.0,62120.0,0.058339]
[1728105375303,0.17778852,62132.0,62120.0,1.141259]
[1728105375304,0.0329,62132.0,62120.0,1.141259]
[1728105375494,0.0329,62132.0,62131.0,0.056329]
[1728105377196,0.0359,62132.0,62131.0,0.056329]
[1728105378901,0.0389,62132.0,62131.0,0.056329]
[1728105380594,0.006,62132.0,62131.0,0.056329]
[1728105382400,0.27183852,62132.0,62131.0,0.056329]
[1728105383604,0.27183852,62132.0,62131.0,0.07485751]
[1728105384100,0.27183917,62132.0,62131.0,0.07485751]
[1728105384904,0.16077865,62146.0,62132.0,0.4828]
[1728105385109,0.16077865,62146.0,62131.0,0.97932851]
[1728105385110,0.16077865,62148.0,62144.0,0.056317]
[1728105385400,0.3608,62154.0,62153.0,0.056309]
[1728105385401,0.00096,62154.0,62153.0,0.056309]
[1728105385606,0.00096,62154.0,62147.0,0.3608]
[1728105385607,0.16077865,62159.0,62158.0,0.056305]
[1728105385990,0.0314,62163.0,62147.0,0.3608]
[1728105385991,0.16077865,62161.0,62147.0,0.3608]
[1728105386197,0.0314,62163.0,62162.0,0.056301]
[1728105386799,0.01,62159.0,62156.0,0.056306]
[1728105387801,0.01,62159.0,62158.0,0.056305]
[1728105388296,0.19173911,62163.0,62158.0,0.056305]
[1728105388297,0.0444,62163.0,62162.0,0.001]
[1728105389102,0.0314,62163.0,62162.0,0.056301]
[1728105390216,0.0444,62163.0,62162.0,0.057301]
[1728105390612,0.0584,62163.0,62162.0,0.058301]
[1728105392606,0.1147,62163.0,62162.0,0.002]
[1728105392830,0.056303,62160.0,62149.0,0.0112]
[1728105393006,0.056303,62160.0,62157.0,0.056305]
[1728105394211,0.065303,62160.0,62157.0,0.057305]
[1728105394608,0.065303,62160.0,62158.0,0.056305]
[1728105395711,0.074303,62160.0,62158.0,0.056305]
[1728105396411,0.065303,62160.0,62158.0,0.056305]
[1728105396708,0.065303,62160.0,62157.0,0.001]
[1728105396709,0.019,62160.0,62159.0,0.056304]
[1728105397412,0.021,62160.0,62159.0,0.056304]
[1728105397607,0.06039777,62160.0,62159.0,0.056304]
[1728105398109,0.06239915,62160.0,62159.0,0.056304]
[1728105403011,0.06239867,62160.0,62159.0,0.056304]
[1728105405315,0.023,62160.0,62159.0,0.056304]
[1728105411823,0.023,62160.0,62150.0,0.0326]
[1728105411824,0.056311,62151.0,62150.0,0.056312]
[1728105412126,0.14510359,62151.0,62150.0,0.056312]
[1728105412929,0.08879259,62151.0,62150.0,0.056312]
[1728105413120,0.26467561,62154.0,62150.0,0.056312]
[1728105413320,0.17588302,62152.0,62150.0,0.056312]
[1728105413520,0.17588302,62152.0,62140.0,0.0324]
[1728105413721,0.16060964,62148.0,62147.0,0.056315]
[1728105413922,0.24940223,62148.0,62147.0,0.056315]
[1728105414124,0.20001291,62148.0,62147.0,0.056315]
[1728105414318,0.26467561,62148.0,62147.0,0.056315]
[1728105414630,0.26467561,62148.0,62145.0,0.38130182]
[1728105414631,0.17588302,62148.0,62145.0,0.38130182]
[1728105414924,0.126316,62146.0,62145.0,0.38130182]
[1728105415128,0.21510859,62146.0,62145.0,0.38130182]
[1728105416140,0.32644597,62146.0,62145.0,0.38130182]
[1728105416346,0.21510859,62146.0,62145.0,0.38130182]
[1728105416549,0.21510859,62146.0,62145.0,0.44061882]
[1728105416752,0.21510859,62146.0,62145.0,0.44361882]
[1728105417138,0.21510859,62146.0,62145.0,0.08281882]
[1728105417539,0.21511811,62146.0,62145.0,0.08281882]
[1728105418549,0.21511811,62146.0,62145.0,0.06473053]
[1728105420242,0.126316,62146.0,62145.0,0.06473053]
[1728105420748,0.126316,62146.0,62145.0,0.00841353]
[1728105421250,0.126316,62146.0,62145.0,0.006]
[1728105421952,0.64844804,62146.0,62145.0,0.006]
[1728105423950,0.16572804,62146.0,62145.0,0.006]
[1728105424156,0.056322,62139.0,62138.0,0.35627019]
[1728105424353,0.056322,62139.0,62138.0,0.35257019]
[1728105425245,0.07,62141.0,62137.0,0.07]
[1728105425453,0.056322,62140.0,62137.0,0.126323]
[1728105425648,0.3608,62147.0,62137.0,0.07]
[1728105425846,0.3608,62147.0,62146.0,0.07]
[1728105426053,0.3608,62147.0,62146.0,0.126316]
[1728105427156,0.40020683,62147.0,62146.0,0.126316]
[1728105427354,0.40020683,62147.0,62146.0,0.128316]
[1728105429159,0.66664241,62147.0,62146.0,0.002]
[1728105429550,0.50591571,62147.0,62146.0,0.002]
[1728105430756,0.50591571,62147.0,62139.0,0.0037]
[1728105430757,0.056321,62140.0,62139.0,0.0037]
[1728105431056,0.056327,62133.0,62132.0,0.0037]
[1728105431360,0.056324,62137.0,62133.0,0.056327]
[1728105431660,0.056324,62137.0,62132.0,0.07]
[1728105431661,0.05632,62142.0,62136.0,0.056325]
[1728105431858,0.05632,62142.0,62134.0,0.11]
[1728105431859,0.05632,62142.0,62137.0,0.088923]
[1728105432163,0.001,62140.0,62137.0,0.088923]
[1728105432361,0.002,62140.0,62139.0,0.001]
[1728105432955,0.05632,62142.0,62137.0,0.089923]
[1728105432956,0.05832,62142.0,62137.0,0.089923]
[1728105433465,0.001,62140.0,62139.0,0.001]
[1728105433965,0.05732,62142.0,62137.0,0.088923]
[1728105434264,0.05832,62142.0,62137.0,0.088923]
[1728105434951,0.001,62140.0,62137.0,0.0326]
[1728105435152,0.001,62140.0,62138.0,0.056323]
[1728105435754,0.001,62140.0,62139.0,0.001]
[1728105436352,0.001,62140.0,62138.0,0.057323]
[1728105436558,0.002,62140.0,62138.0,0.057323]
[1728105436958,0.002,62140.0,62139.0,0.001]
[1728105437468,0.001,62140.0,62138.0,0.056323]
[1728105437668,0.002,62140.0,62138.0,0.057323]
[1728105438564,0.002,62140.0,62139.0,0.166322]
[1728105438765,0.001,62140.0,62139.0,0.166322]
[1728105439271,0.002,62140.0,62139.0,0.167322]
[1728105445274,0.002,62140.0,62139.0,0.057322]
[1728105445967,0.058321,62140.0,62139.0,0.057322]
[1728105446173,0.058321,62140.0,62139.0,0.001]
[1728105448073,0.168321,62140.0,62139.0,0.001]
[1728105448478,0.058321,62140.0,62139.0,0.001]
[1728105450080,0.058321,62140.0,62139.0,0.057322]
[1728105450273,0.09773368,62140.0,62139.0,0.057322]
[1728105450471,0.14713481,62140.0,62139.0,0.057322]
[1728105451174,0.09081381,62140.0,62139.0,0.057322]
[1728105456180,0.14713481,62140.0,62139.0,0.001]
[1728105456971,0.17733481,62140.0,62139.0,0.001]
[1728105457281,0.088521,62140.0,62139.0,0.001]
[1728105464484,0.449321,62140.0,62139.0,0.001]
[1728105465779,0.056327,62133.0,62132.0,0.0037]
[1728105465985,0.05633,62130.0,62129.0,0.3608]
[1728105467285,0.05733,62130.0,62129.0,0.38039581]
[1728105467481,0.05733,62130.0,62129.0,0.3618]
[1728105467687,0.48813,62130.0,62129.0,0.001]
[1728105468385,0.48913,62130.0,62129.0,0.001]
[1728105468782,0.48913,62130.0,62126.0,0.056334]
[1728105469593,0.41913,62130.0,62126.0,0.056334]
[1728105469885,0.41913,62130.0,62127.0,0.056333]
[1728105470082,0.41813,62130.0,62127.0,0.056333]
[1728105470283,0.41913,62130.0,62127.0,0.056333]
[1728105472286,0.04941086,62129.0,62127.0,0.056333]
[1728105472488,0.20984089,62129.0,62127.0,0.056333]
[1728105474685,0.001,62129.0,62128.0,0.056332]
[1728105474988,0.04041671,62129.0,62128.0,0.056332]
[1728105475184,0.001,62129.0,62128.0,0.056332]
[1728105476384,0.03941595,62129.0,62127.0,0.056333]
[1728105476580,0.03941595,62128.0,62127.0,0.056333]
[1728105476781,0.03941615,62134.0,62133.0,0.056327]
[1728105476987,0.08882161,62134.0,62133.0,0.056327]
[1728105477187,0.03941615,62134.0,62133.0,0.056327]
[1728105477392,0.08882098,62134.0,62133.0,0.056327]
[1728105477690,0.14461726,62134.0,62133.0,0.056327]
[1728105477887,0.23343824,62134.0,62133.0,0.056327]
[1728105479096,0.23343824,62134.0,62133.0,0.07478334]
[1728105479290,0.23643824,62134.0,62133.0,0.07478334]
[1728105479590,0.23843824,62134.0,62133.0,0.07478334]
[1728105479792,0.23843589,62134.0,62133.0,0.07478334]
[1728105480486,0.005,62134.0,62133.0,0.07478334]
[1728105483481,0.005,62134.0,62133.0,0.43558334]
[1728105487989,0.04441285,62134.0,62133.0,0.07478334]
[1728105488183,0.09381418,62134.0,62133.0,0.07478334]
[1728105489597,0.09381418,62134.0,62133.0,0.14478334]
[1728105492890,0.09381488,62134.0,62133.0,0.14478334]
[1728105494495,0.04441316,62134.0,62133.0,0.14478334]
[1728105495394,0.005,62134.0,62133.0,0.14478334]
[1728105502503,0.04441331,62134.0,62133.0,0.14478334]
[1728105503400,0.005,62134.0,62133.0,0.14478334]
[1728105503599,0.09381609,62134.0,62133.0,0.14478334]
[1728105504102,0.15014309,62134.0,62133.0,0.08845634]
[1728105504303,0.29477367,62134.0,62133.0,0.08845634]
[1728105504503,0.15014309,62134.0,62133.0,0.08845634]
[1728105506905,0.15014309,62134.0,62133.0,0.14478334]
[1728105507805,0.15014568,62134.0,62133.0,0.14478334]
[1728105509402,0.061327,62134.0,62133.0,0.14478334]
[1728105510511,0.005,62134.0,62133.0,0.14478334]
[1728105514006,0.0037,62144.0,62143.0,0.056318]
[1728105514310,0.3918,62145.0,62144.0,0.056317]
[1728105514311,0.39276,62145.0,62144.0,0.056317]
[1728105514520,0.3918,62145.0,62144.0,0.056317]
[1728105515213,0.3668,62145.0,62144.0,0.056317]
[1728105516009,0.3738,62145.0,62144.0,0.056317]
[1728105517016,0.3818,62145.0,62144.0,0.056317]
[1728105517516,0.47060855,62145.0,62144.0,0.056317]
[1728105518220,0.63147672,62145.0,62144.0,0.056317]
[1728105518517,0.47060855,62145.0,62144.0,0.056317]
[1728105519620,0.43960855,62145.0,62144.0,0.056317]
[1728105519920,0.24856048,62145.0,62144.0,0.056317]
[1728105520115,0.10380855,62145.0,62144.0,0.07476079]
[1728105520317,0.05441035,62145.0,62144.0,0.07476079]
[1728105522318,0.05440669,62145.0,62144.0,0.07476079]
[1728105524523,0.015,62145.0,62144.0,0.07476079]
[1728105529626,0.056318,62144.0,62140.0,0.056321]
[1728105529830,0.056318,62144.0,62138.0,0.37925835]
[1728105529831,0.0306,62143.0,62138.0,0.37925835]
[1728105530126,0.0306,62143.0,62141.0,0.05632]
[1728105531119,0.3914,62143.0,62141.0,0.05632]
[1728105531421,0.3964,62143.0,62141.0,0.05632]
[1728105532727,0.3964,62143.0,62142.0,0.056319]
[1728105533231,0.008,62143.0,62142.0,0.056319]
[1728105533818,0.006,62143.0,62142.0,0.056319]
[1728105534020,0.011,62143.0,62142.0,0.056319]
[1728105544241,0.0998017,62143.0,62142.0,0.056319]
[1728105544433,0.1886034,62143.0,62142.0,0.056319]
[1728105546938,0.34948956,62143.0,62142.0,0.056319]
[1728105548036,0.18859682,62143.0,62142.0,0.056319]
[1728105548535,0.0998017,62143.0,62142.0,0.056319]
[1728105550537,0.0998017,62143.0,62142.0,0.126319]
[1728105551145,0.011,62143.0,62142.0,0.126319]
[1728105555344,0.05040556,62143.0,62142.0,0.126319]
[1728105557950,0.05040528,62143.0,62142.0,0.126319]
[1728105562447,0.011,62143.0,62142.0,0.126319]
[1728105566946,0.011,62143.0,62142.0,0.056319]
[1728105567147,0.011,62143.0,62142.0,0.126319]
[1728105568451,0.011,62143.0,62142.0,0.487119]
[1728105568856,0.011,62143.0,62142.0,0.126319]
[1728105569254,0.011,62143.0,62142.0,0.487119]
[1728105570553,0.09979553,62143.0,62142.0,0.487119]
[1728105571555,0.09979553,62143.0,62142.0,0.056319]
[1728105571850,0.09979553,62143.0,62142.0,0.487119]
[1728105572558,0.24457795,62143.0,62142.0,0.487119]
[1728105575652,0.05040457,62143.0,62142.0,0.487119]
[1728105577368,0.05040457,62143.0,62142.0,0.126319]
[1728105577570,0.011,62143.0,62142.0,0.487119]
[1728105581364,0.011,62143.0,62142.0,0.126319]
[1728105581563,0.011,62143.0,62142.0,0.487119]
[1728105582360,0.011,62143.0,62142.0,0.417119]
[1728105582562,0.129318,62143.0,62142.0,0.417119]
[1728105582756,0.129318,62143.0,62142.0,0.3608]
[1728105583857,0.129318,62143.0,62140.0,0.056321]
[1728105584253,0.129318,62143.0,62140.0,0.126321]
[1728105584559,0.056319,62142.0,62140.0,0.056321]
[1728105584866,0.056319,62142.0,62138.0,0.01845835]
[1728105584867,0.005,62143.0,62142.0,0.056319]
[1728105585064,0.008,62143.0,62142.0,0.056319]
[1728105585756,0.003,62143.0,62142.0,0.056319]
[1728105585953,0.009,62143.0,62142.0,0.056319]
[1728105586562,0.006,62143.0,62142.0,0.056319]
[1728105586763,0.011,62143.0,62142.0,0.056319]
[1728105587369,0.005,62143.0,62142.0,0.056319]
[1728105587556,0.0343,62151.0,62149.0,0.056313]
[1728105587760,0.0306,62151.0,62150.0,0.07]
[1728105588566,0.0366,62151.0,62150.0,0.07]
[1728105589159,0.0376,62151.0,62150.0,0.07]
[1728105589362,0.093911,62151.0,62150.0,0.07]
[1728105589872,0.100911,62151.0,62150.0,0.07]
[1728105591268,0.056312,62150.0,62149.0,0.056313]
[1728105591675,0.056314,62148.0,62145.0,0.126316]
[1728105591867,0.0446,62151.0,62145.0,0.07]
[1728105592177,0.0446,62151.0,62149.0,0.126313]
[1728105592178,0.056312,62150.0,62149.0,0.126313]
[1728105592678,0.14510947,62150.0,62149.0,0.126313]
[1728105592973,0.15110947,62150.0,62149.0,0.126313]
[1728105594378,0.15710947,62150.0,62149.0,0.126313]
[1728105598372,0.068312,62150.0,62149.0,0.126313]
[1728105598571,0.15710831,62150.0,62149.0,0.126313]
[1728105599479,0.10079631,62150.0,62149.0,0.126313]
[1728105599673,0.012,62150.0,62149.0,0.126313]
[1728105603177,0.068312,62150.0,62149.0,0.126313]
[1728105604874,0.068312,62150.0,62149.0,0.056313]
[1728105607670,0.24524994,62150.0,62149.0,0.056313]
[1728105608367,0.33404632,62150.0,62149.0,0.056313]
[1728105609182,0.05140495,62150.0,62149.0,0.056313]
[1728105610878,0.012,62150.0,62149.0,0.056313]
[1728105611481,0.10079588,62150.0,62149.0,0.056313]
[1728105612578,0.15677898,62150.0,62149.0,0.056313]
[1728105612782,0.10079159,62150.0,62149.0,0.118613]
[1728105612982,0.05140495,62150.0,62149.0,0.118613]
[1728105613292,0.05140122,62150.0,62149.0,0.118613]
[1728105613884,0.15677898,62150.0,62149.0,0.118613]
[1728105614075,0.24556713,62150.0,62149.0,0.118613]
[1728105614270,0.10078815,62150.0,62149.0,0.118613]
[1728105614482,0.24556713,62150.0,62149.0,0.118613]
[1728105615275,0.24556259,62150.0,62149.0,0.118613]
[1728105615581,0.10078815,62150.0,62149.0,0.118613]
[1728105615894,0.012,62150.0,62149.0,0.118613]
[1728105617888,0.00241384,62155.0,62149.0,0.118613]
[1728105618084,0.00241384,62155.0,62154.0,0.126308]
[1728105618986,0.00841384,62155.0,62154.0,0.126308]
[1728105619883,0.01341384,62155.0,62154.0,0.126308]
[1728105620488,0.02441384,62155.0,62154.0,0.127308]
[1728105622189,0.022,62155.0,62154.0,0.127308]
[1728105625090,0.022,62155.0,62154.0,0.1461338]
[1728105628895,0.022,62155.0,62154.0,0.5069338]
[1728105646291,0.11077493,62155.0,62154.0,0.5069338]
[1728105646495,0.11077493,62155.0,62154.0,0.4369338]
[1728105646698,0.11077493,62155.0,62154.0,0.5069338]
[1728105647400,0.07137971,62155.0,62154.0,0.5069338]
[1728105647600,0.022,62155.0,62154.0,0.5069338]
[1728105647905,0.11077531,62155.0,62154.0,0.5069338]
[1728105650901,0.05919365,62155.0,62154.0,0.5069338]
[1728105651102,0.00981394,62155.0,62154.0,0.5069338]
[1728105651905,0.00981394,62155.0,62154.0,0.5377338]
[1728105652303,0.16086921,62161.0,62156.0,0.056307]
[1728105652505,0.16086921,62162.0,62161.0,0.056302]
[1728105652708,0.16086921,62168.0,62161.0,0.126302]
[1728105652908,0.0632,62173.0,62170.0,0.056294]
[1728105653112,0.0632,62173.0,62170.0,0.07]
[1728105653514,0.0632,62173.0,62172.0,0.056292]
[1728105654101,0.0722,62173.0,62172.0,0.056292]
[1728105654613,0.0632,62173.0,62172.0,0.056292]
[1728105654801,0.0682,62173.0,62172.0,0.057292]
[1728105656310,0.0672,62173.0,62172.0,0.057292]
[1728105656503,0.0752,62173.0,62172.0,0.058292]
[1728105657199,0.0752,62173.0,62172.0,0.07670198]
[1728105657401,0.012,62173.0,62172.0,0.07670198]
[1728105659704,0.012,62173.0,62172.0,0.43750198]
[1728105661112,0.05138651,62173.0,62172.0,0.43750198]
[1728105661312,0.22916021,62173.0,62172.0,0.02040998]
[1728105661503,0.1570462,62173.0,62172.0,0.02040998]
[1728105661812,0.1895462,62173.0,62172.0,0.02040998]
[1728105662406,0.1895462,62173.0,62172.0,0.002]
[1728105664408,0.35012558,62173.0,62172.0,0.002]
[1728105665523,0.35013877,62173.0,62172.0,0.002]
[1728105666316,0.14018353,62173.0,62172.0,0.002]
[1728105668023,0.100791,62173.0,62172.0,0.002]
[1728105675727,1.183311,62173.0,62172.0,0.002]
[1728105675928,1.22270431,62173.0,62172.0,0.002]
[1728105676425,0.056298,62165.0,62164.0,0.059999]
[1728105676615,0.056298,62165.0,62164.0,0.056299]
[1728105677430,0.03939784,62165.0,62162.0,0.01863705]
[1728105677724,0.2067353,62171.0,62159.0,0.056304]
[1728105677725,0.056294,62170.0,62159.0,0.056304]
[1728105678028,0.056294,62170.0,62164.0,0.001]
[1728105678029,0.064298,62165.0,62164.0,0.001]
[1728105678526,0.064298,62165.0,62164.0,0.002]
[1728105678527,0.072298,62165.0,62164.0,0.002]
[1728105678929,0.064298,62165.0,62164.0,0.001]
[1728105679232,0.46449644,62165.0,62164.0,0.001]
[1728105679522,0.95509644,62165.0,62164.0,0.002]
[1728105679924,0.433098,62165.0,62164.0,0.002]
[1728105680124,0.4724964,62165.0,62164.0,0.002]
[1728105680429,0.433098,62165.0,62164.0,0.002]
[1728105682924,0.47249622,62165.0,62164.0,0.002]
[1728105688033,0.52187863,62165.0,62164.0,0.002]
[1728105688234,0.57958183,62165.0,62164.0,0.002]
[1728105688837,0.21878183,62165.0,62164.0,0.002]
[1728105691032,0.433098,62165.0,62164.0,0.002]
[1728105691626,0.47249626,62165.0,62164.0,0.002]
[1728105691828,0.072298,62165.0,62164.0,0.002]
[1728105692036,0.433098,62165.0,62164.0,0.002]
[1728105692531,0.47249626,62165.0,62164.0,0.002]
[1728105692930,0.11169626,62165.0,62164.0,0.002]
[1728105693236,0.47249626,62165.0,62164.0,0.002]
[1728105693440,0.11169626,62165.0,62164.0,0.002]
[1728105693738,0.47249626,62165.0,62164.0,0.002]
[1728105694937,0.11169626,62165.0,62164.0,0.002]
[1728105695131,0.433098,62165.0,62164.0,0.002]
[1728105695337,0.47249633,62165.0,62164.0,0.002]
[1728105696839,1.55509633,62165.0,62164.0,0.002]
[1728105697632,0.95509633,62165.0,62164.0,0.002]
[1728105698033,0.70138376,62165.0,62164.0,0.002]
[1728105698235,1.06218376,62165.0,62164.0,0.002]
[1728105699631,1.06218394,62165.0,62164.0,0.002]
[1728105701041,0.57958394,62165.0,62164.0,0.002]
[1728105701940,0.21878394,62165.0,62164.0,0.002]
[1728105702130,0.52187987,62165.0,62164.0,0.002]
[1728105702327,0.57958394,62165.0,62164.0,0.002]
[1728105703034,0.21878385,62165.0,62164.0,0.002]
[1728105703231,0.52187978,62165.0,62164.0,0.002]
[1728105703439,0.57958385,62165.0,62164.0,0.002]
[1728105705842,0.21878385,62165.0,62164.0,0.002]
[1728105706039,0.47249647,62165.0,62164.0,0.002]
[1728105707143,0.11169647,62165.0,62164.0,0.002]
[1728105707439,0.47249647,62165.0,62164.0,0.002]
[1728105708451,0.11169647,62165.0,62164.0,0.002]
[1728105708645,0.47249647,62165.0,62164.0,0.002]
[1728105711446,0.11169647,62165.0,62164.0,0.002]
[1728105711638,0.47249647,62165.0,62164.0,0.002]
[1728105712138,0.056305,62158.0,62157.0,0.00611276]
[1728105712341,0.056305,62158.0,62148.0,0.0302]
[1728105712342,0.056309,62154.0,62150.0,0.060012]
[1728105712537,0.05631,62153.0,62150.0,0.056312]
[1728105712937,0.03940394,62152.0,62150.0,0.056312]
[1728105713144,0.056311,62152.0,62150.0,0.056312]
[1728105713740,0.056311,62151.0,62150.0,0.056312]
[1728105715141,0.057311,62151.0,62150.0,0.056312]
[1728105716545,0.059311,62151.0,62150.0,0.056312]
[1728105718037,0.059311,62151.0,62148.0,0.11175685]
[1728105718038,0.056313,62149.0,62148.0,0.11175685]
[1728105718243,0.056313,62149.0,62148.0,0.08155685]
[1728105719254,0.056313,62149.0,62148.0,0.01835685]
[1728105719452,0.056315,62147.0,62144.0,0.056317]
[1728105719643,0.003,62151.0,62144.0,0.056317]
[1728105719842,0.056317,62145.0,62144.0,0.056317]
[1728105720248,0.01838098,62153.0,62140.0,0.03]
[1728105720448,0.17621102,62160.0,62140.0,0.03]
[1728105720449,0.056319,62143.0,62140.0,0.10469163]
[1728105720951,0.03940819,62142.0,62140.0,0.10469163]
[1728105721153,0.056319,62143.0,62140.0,0.10469163]
[1728105721154,0.03940819,62141.0,62140.0,0.10469163]
[1728105721653,0.14491102,62141.0,62140.0,0.10469163]
[1728105721850,0.14491102,62141.0,62140.0,0.11369163]
[1728105722055,0.03940819,62141.0,62140.0,0.11369163]
[1728105722552,0.03940819,62142.0,62140.0,0.11369163]
[1728105722753,0.03940819,62141.0,62140.0,0.11369163]
[1728105722952,0.03940819,62141.0,62140.0,0.03637063]
[1728105723141,0.20088063,62141.0,62140.0,0.03637063]
[1728105723347,0.28968455,62141.0,62140.0,0.009]
[1728105723546,0.056322,62139.0,62137.0,0.00241377]
[1728105723743,0.03940819,62138.0,62137.0,0.00241377]
[1728105724152,0.056323,62138.0,62137.0,0.02109737]
[1728105724354,0.09573119,62138.0,62137.0,0.02109737]
[1728105724757,0.09573119,62138.0,62137.0,0.03309737]
[1728105725247,0.056323,62138.0,62137.0,0.03309737]
[1728105725646,0.056323,62138.0,62137.0,0.08942137]
[1728105725857,0.09673559,62138.0,62137.0,0.10142137]
[1728105726251,0.057323,62138.0,62137.0,0.10142137]
[1728105727156,0.058323,62138.0,62137.0,0.10142137]
[1728105727552,0.09773559,62138.0,62137.0,0.10142137]
[1728105727950,0.058323,62138.0,62137.0,0.10142137]
[1728105731660,0.058323,62138.0,62137.0,0.04509737]
[1728105736946,0.14713669,62138.0,62137.0,0.04509737]
[1728105737452,0.30804919,62138.0,62137.0,0.04509737]
[1728105738358,0.25864809,62138.0,62137.0,0.04509737]
[1728105738658,0.09773567,62138.0,62137.0,0.04509737]
[1728105741857,0.14713672,62138.0,62137.0,0.04509737]
[1728105742562,0.14713702,62138.0,62137.0,0.04509737]
[1728105742951,0.10772424,62138.0,62137.0,0.04509737]
[1728105743265,0.058323,62138.0,62137.0,0.04509737]
[1728105746452,0.058323,62138.0,62137.0,0.0426836]
[1728105750858,0.058323,62138.0,62137.0,0.024]
[1728105751158,0.1471418,62138.0,62137.0,0.024]
[1728105751361,0.32414546,62138.0,62137.0,0.024]
[1728105751663,0.1471418,62138.0,62137.0,0.024]
[1728105752356,0.38187353,62138.0,62137.0,0.024]
[1728105753859,0.38187341,62138.0,62137.0,0.024]
[1728105755965,0.38193642,62138.0,62137.0,0.024]
[1728105756169,0.32420847,62138.0,62137.0,0.024]
[1728105756760,0.1471418,62138.0,62137.0,0.024]
[1728105756966,0.32420804,62138.0,62137.0,0.024]
[1728105757168,0.38193611,62138.0,62137.0,0.024]
[1728105757361,0.32420804,62138.0,62137.0,0.024]
[1728105757765,0.38193611,62138.0,62137.0,0.024]
[1728105758169,0.058323,62138.0,62137.0,0.024]
[1728105770676,0.09774074,62138.0,62137.0,0.024]
[1728105770875,0.056328,62132.0,62131.0,0.0037]
[1728105771077,0.056328,62132.0,62129.0,0.0112]
[1728105771078,0.056334,62126.0,62125.0,0.0185831]
[1728105771273,0.056329,62131.0,62124.0,0.00241449]
[1728105771274,0.056335,62125.0,62124.0,0.00241449]
[1728105772077,0.028335,62125.0,62124.0,0.00241449]
[1728105773194,0.11716781,62125.0,62124.0,0.00241449]
[1728105773583,0.11816781,62125.0,62124.0,0.00241449]
[1728105774379,0.11916781,62125.0,62124.0,0.00241449]
[1728105776384,0.17501412,62125.0,62124.0,0.00241449]
[1728105776579,0.21443524,62125.0,62124.0,0.00241449]
[1728105776779,0.030335,62125.0,62124.0,0.00241449]
[1728105776984,0.06975612,62125.0,62124.0,0.00241449]
[1728105777579,0.06975612,62125.0,62124.0,0.05875049]
[1728105781186,0.030335,62125.0,62124.0,0.05875049]
[1728105785687,0.029335,62125.0,62124.0,0.05875049]
[1728105785894,0.030335,62125.0,62124.0,0.05875049]
[1728105788185,0.06975611,62125.0,62124.0,0.05875049]
[1728105788386,0.11916779,62125.0,62124.0,0.05875049]
[1728105793402,0.06975611,62125.0,62124.0,0.05875049]
[1728105794889,0.030335,62125.0,62124.0,0.00241449]
[1728105798297,0.056337,62122.0,62121.0,0.3608]
[1728105799394,0.057337,62122.0,62121.0,0.3608]
[1728105800006,0.058337,62122.0,62121.0,0.3608]
[1728105800805,0.05634,62119.0,62118.0,0.01887129]
[1728105801000,0.05634,62119.0,62117.0,0.3608]
[1728105801206,0.05634,62119.0,62117.0,0.417142]